Cogmind - Beta 15 @@@ ROGUE MODE // 2025.05.14 @ 15:29:06 Player: Darcyisverycute Result: Destroyed by Y-45 Defender with Heavy Assault Rifle Performance ------------- Evolutions (0) 0 Regions Visited (3) 600 Robots Destroyed (35) 175 Value Destroyed (816) 816 Prototype IDs (0) 0 Alien Tech Used (0) 0 Bonus (0) 0 TOTAL SCORE: 1591 Bonus ------- None Cogmind --------- Core Integrity 0/250 Matter 275/300 Energy 95/100 System Corruption 1% Temperature Cool (9) Movement Rolling (165) Ox5 Location -8/Recycling Parts ------- > --- POWER (1) -------- Subdweller Power Source > --- PROPULSION (2) --- Wheel Compact Wheel > --- UTILITY (2) ------ Cargo Storage Unit > --- WEAPON (2) ------- Battle Cannon Mining Laser > --- INVENTORY (30) --- Subdweller Power Source Subdweller Power Source Compact Wheel Subdweller Monowheel Flight Unit Flight Unit Flight Unit Flight Unit Disposable Heat Sink Small Storage Unit High-capacity Battery (250) Large Matter Pod (66) Machine Analyzer Subdweller Optics Subdweller Optics Subdweller Optics Improved Terrain Scanner Seismic Detector Hardened Light Armor Plating Subdweller Laser Subdweller Laser Subdweller Machine Gun Light Cannon Light Cannon Light Cannon Light Cannon Grenade Launcher Grenade Launcher Grenade Launcher Peak State ------------ > --- POWER ------------ Subdweller Power Source > --- PROPULSION ------- Titanium Leg Wheel > --- UTILITY ---------- Cargo Storage Unit > --- WEAPON ----------- Subdweller Laser Battle Cannon > --- INVENTORY -------- Subdweller Power Source Subdweller Power Source Light Treads Subdweller Monowheel Flight Unit Flight Unit Flight Unit Flight Unit Disposable Heat Sink Small Storage Unit High-capacity Battery Large Matter Pod Machine Analyzer Subdweller Optics Subdweller Optics Subdweller Optics Improved Terrain Scanner Seismic Detector Hardened Light Armor Plating Subdweller Laser Subdweller Machine Gun Light Cannon Light Cannon Light Cannon Light Cannon Grenade Launcher Grenade Launcher Grenade Launcher Mining Laser [Rating: 16] Favorites ----------- Power Light Nuclear Core Engine Ion Engine Power Core Light Nuclear Core Propulsion Wheel Treads Light Treads Leg Titanium Leg Wheel Wheel Utility Cargo Storage Unit Device Seismic Detector Storage Cargo Storage Unit Weapon Assault Rifle Energy Gun Subdweller Laser Ballistic Gun Assault Rifle Ballistic Cannon Light Cannon Launcher Grenade Launcher Special Weapon Mining Laser Build | -11 -10 -10 -8 ------- Run | Yrd Mat Sub Rec Slots Evolved . | . . . . Power . | . . . . Propulsion . | . . . . Utility . | . . . . Weapon . | . . . . Parts Attached 30 | 7 6 14 3 Power 4 | 1 1 2 . Engine 3 | 1 1 1 . Core 1 | . . 1 . Reactor . | . . . . Propulsion 13 | 2 2 7 2 Treads 4 | 2 . 2 . Leg 1 | . . . 1 Wheel 8 | . 2 5 1 Hover . | . . . . Flight . | . . . . Utility 3 | 2 1 . . Device 1 | 1 . . . Storage 2 | 1 1 . . Processor . | . . . . Hackware . | . . . . Protection . | . . . . Artifact . | . . . . Weapon 10 | 2 2 5 1 Energy Gun 2 | . . 2 . Energy Cannon . | . . . . Ballistic Gun 4 | 2 2 . . Ballistic Cannon 2 | . . 1 1 Launcher 1 | . . 1 . Special Weapon 1 | . . 1 . Impact Weapon . | . . . . Slashing Weapon . | . . . . Piercing Weapon . | . . . . Special Melee Weapon . | . . . . Unidentified Prototypes . | . . . . Parts Lost 10 | . 2 8 . Power 3 | . 1 2 . Propulsion 4 | . . 4 . Utility . | . . . . Weapon 3 | . 1 2 . Highest Loss Streak 3 | . 1 3 . To Critical Strikes . | . . . . Average Backups 23 | 1 12 29 29 Power 1 | . . 1 2 Propulsion 6 | . 2 9 6 Utility 7 | . 3 8 10 Weapon 8 | . 5 9 10 Tool/Special . | . . . . Unused Backups 26 | . 3 . 23 Power 3 | . 1 . 2 Propulsion 5 | . . . 5 Utility 10 | . 1 . 9 Weapon 8 | . 1 . 7 Tool/Special . | . . . . Average Slot Usage (%) 86 | . 92 84 85 Engine 7 | . 13 2 14 Core 6 | . . 11 . Treads 11 | . 22 6 5 Wheel 16 | . 5 21 16 Device 1 | . 6 . . Storage 14 | . 14 14 14 Energy Gun 4 | . . 6 2 Ballistic Gun 16 | . 28 12 2 Ballistic Cannon 4 | . . 5 11 Special Weapon 2 | . . 1 11 Peak Build Rating 16 | 8 10 15 16 Average Rating 11 | 5 8 12 13 On Entrance 7 | . 8 10 13 Naked Turns . | . . . . Heaviest Build 152 | 15 149 152 152 Greatest Support 40 | 40 40 40 26 Greatest Overweight (x) 15 | . 7 15 15 Average Overweight (x) 5 | . 2 7 11 Largest Inventory Capacity 30 | 8 30 30 30 Average Capacity 26 | 7 19 30 30 Most Carried 30 | 6 28 30 30 Average Carried 23 | 2 12 29 29 Final Capacity 30 | 8 30 30 30 Final Carried 30 | 6 28 30 29 Class Distribution -------------------- 83% | Hauler-Mutant 16% | Mutant Dominant Class ---------------- Hauler-Mutant | -10/Materials Hauler-Mutant | -10/Subcaves Hauler-Mutant | -8/Recycling Resources | -11 -10 -10 -8 ----------- Run | Yrd Mat Sub Rec Matter Collected 1529 | 247 531 376 375 Remotely . | . . . . Salvage Created 1304 | 126 578 330 270 Parts 72 | 13 32 20 7 Haulers Intercepted 1 | . 1 . . Recyclers Shooed . | . . . . Parts Field Recycled . | . . . . Retrieved Matter . | . . . . Parts Self-Destructed 1 | . . 1 . Prevented . | . . . . Kills | -11 -10 -10 -8 ------- Run | Yrd Mat Sub Rec Combat Hostiles Destroyed 21 | . 11 10 . Guns 15 | . 11 4 . Cannons 2 | . . 2 . AOE 4 | . . 4 . Classes Destroyed 9 | 2 4 3 . Worker 3 | . 3 . . Tunneler 4 | 4 . . . Hauler 1 | . 1 . . Recycler 4 | 1 . . 3 Turret 2 | . . 2 . Swarmer 4 | . . 4 . Grunt 10 | . 10 . . Artisan 2 | . . 2 . Subdweller 7 | . 1 6 . Best Kill Streak 5 | 5 3 4 2 Combat Bots Only 4 | . 3 4 . Max Kills in Single Turn 4 | 1 2 4 1 Gunslinging . | . . . . Exploded 4 | . . 4 . Melee . | . . . . Uniques/NPCs Destroyed . | . . . . Combat | -11 -10 -10 -8 -------- Run | Yrd Mat Sub Rec Hostile Shots Fired 157 | . 65 90 2 Missed 46 | . 14 32 . Hits 111 | . 51 58 2 Projectile 111 | . 51 58 2 Critical Strikes 2 | . 2 . . Damage Taken 1770 | . 667 1072 31 Core 264 | . 28 205 31 Absorbed by Shields . | . . . . Core Remaining (%) 100 | 100 . . . Volleys Fired 153 | 9 54 68 22 Largest 2 | 2 2 2 2 Hottest 100 | 40 40 100 100 Shots Fired 245 | 18 108 94 25 Gun 181 | 18 108 53 2 Cannon 25 | . . 9 16 Launcher 17 | . . 17 . Special 22 | . . 15 7 Kinetic 177 | 18 108 35 16 Thermal 33 | . . 24 9 Explosive 17 | . . 17 . Electromagnetic 18 | . . 18 . Robot Hit Streak 21 | 5 21 15 19 Robot Miss Streak 3 | 1 3 2 . Penetration Max . | . . . . Secondary Targets 1 | . 1 . . Max Gunslinging Chain 1 | . 1 . . Shots Hit Robots 140 | 10 75 51 4 Core Hits 76 | 6 27 40 3 Critical Kills . | . . . . Critical Parts Destroyed . | . . . . Critical Strikes 4 | . . 2 2 Destroy 1 | . . 1 . Blast 2 | . . . 2 Corrupt 1 | . . 1 . Melee Attacks . | . . . . Impact . | . . . . Slashing . | . . . . Piercing . | . . . . Sneak Attacks . | . . . . Combat Hostiles . | . . . . Follow-up Attacks . | . . . . Damage Inflicted 2298 | 124 988 1103 83 Guns 1724 | 124 988 591 21 Cannons 195 | . . 133 62 Explosions 379 | . . 379 . Melee . | . . . . Ramming . | . . . . Kinetic 1550 | 124 988 376 62 Thermal 194 | . . 173 21 Explosive 379 | . . 379 . Electromagnetic 175 | . . 175 . Impact . | . . . . Slashing . | . . . . Piercing . | . . . . Highest Corruption 1 | . 1 1 1 Average Corruption 1 | . 1 1 1 Corruption Purged . | . . . . Corruption Blocked . | . . . . Effects 28 | . 5 18 5 Message Errors 7 | . 1 4 2 Matter Fused 10 | . . 9 1 Heat Flow Errors 2 | . . 2 . Energy Discharges 2 | . . 2 . Data Loss (minor) 1 | . 1 . . Data Loss (major) 3 | . 2 1 . Misfires 1 | . . . 1 Alerts 2 | . 1 . 1 Overload Shots . | . . . . Overflow Damage . | . . . . Projectiles . | . . . . Explosions . | . . . . Melee . | . . . . Knockbacks 4 | . . 4 . Impact . | . . . . Kinetic 4 | . . 4 . Secondary . | . . . . Self-Inflicted Damage 59 | . . 59 . Shots 2 | . . 2 . Rammed . | . . . . Targets Rammed . | . . . . Kicked . | . . . . Crushed . | . . . . Highest Temperature 185 | . 27 185 40 Average Temperature 22 | . 7 84 17 Received Heat Transfer 672 | . 405 258 9 Siege Activations . | . . . . Martial Activations . | . . . . Shielding Activations . | . . . . Robots Disrupted . | . . . . Combat Hostiles . | . . . . Robots Corrupted . | . . . . Combat Hostiles . | . . . . Parts Fried 4 | . . 4 . Impact Corruptions . | . . . . Robots Melted . | . . . . Combat Hostiles . | . . . . Parts Melted 3 | . . 3 . Heat Transferred 225 | . . 200 25 Parts Sabotaged . | . . . . Parts Stolen . | . . . . Parts Stripped . | . . . . Power Chain Reactions . | . . . . Alert | -11 -10 -10 -8 ------- Run | Yrd Mat Sub Rec Maximum Alert Level . | . . . . Low Security (%) 100 | 100 100 . 100 Level 1 . | . . . . Level 2 . | . . . . Level 3 . | . . . . Level 4 . | . . . . Level 5 . | . . . . High Security . | . . . . Max Security . | . . . . Peak Influence 151 | 15 151 . 45 Initial 13 | . . . 13 Average 39 | 3 58 . 6 Influence Increases 1041 | 25 393 570 53 Destroy 0b10 Robot/C 320 | . 200 120 . Destroy 0b10 Robot/NC 60 | 25 20 . 15 Destroy Leader 52 | . 52 . . Select Force Hacks 60 | . 30 . 30 Destroy Structure 9 | . 1 . 8 Lose Combat Pursuer 540 | . 90 450 . Influence Decreases 1041 | 25 392 543 81 Entered New Map 16 | . . 1 15 Time Decay 945 | 25 372 482 66 Lost Part 80 | . 20 60 . Squads Dispatched 2 | . 2 . . Investigation 1 | . 1 . . Extermination . | . . . . Reinforcement 1 | . 1 . . Assault . | . . . . Garrison . | . . . . Intercept . | . . . . Searches Triggered . | . . . . Construction Impeded . | . . . . Haulers Reinforced . | . . . . Active Scanning Responses . | . . . . Cargo Convoy Interrupts . | . . . . Stealth | -11 -10 -10 -8 --------- Run | Yrd Mat Sub Rec Distress Signals 4 | . 4 . . Communications Jammed . | . . . . Distress Signals . | . . . . Times Spotted 38 | . 22 15 1 Peak Tracking Total 6 | . 6 6 . Tactical Retreats 9 | . 4 5 . Traps | -11 -10 -10 -8 ------- Run | Yrd Mat Sub Rec Traps Triggered 1 | . 1 . . Indirectly . | . . . . Trap Hack Attempts . | . . . . Triggered . | . . . . Disarmed . | . . . . Reprogrammed . | . . . . Reused . | . . . . Traps Extracted . | . . . . Installed . | . . . . Triggered . | . . . . Machines | -11 -10 -10 -8 ---------- Run | Yrd Mat Sub Rec Machines Disabled 2 | . . 2 . Max in Single Turn 1 | . . 1 . Machines Repaired . | . . . . Machines Dismantled . | . . . . Machines Sabotaged . | . . . . Overloaded Fab Kills . | . . . . Hacking | -11 -10 -10 -8 --------- Run | Yrd Mat Sub Rec Machines Accessed 2 | . 1 . 1 Terminals . | . . . . Fabricators . | . . . . Repair Stations . | . . . . Recycling Units 2 | . 1 . 1 Scanalyzers . | . . . . Garrison Access . | . . . . Total Hacks 2 | . 1 . 1 Successful 2 | . 1 . 1 Failed . | . . . . Catastrophic . | . . . . Database Lockouts . | . . . . Manual 2 | . 1 . 1 Terminals . | . . . . Fabricators . | . . . . Repair Stations . | . . . . Recycling Units 2 | . 1 . 1 Scanalyzers . | . . . . Garrison Access . | . . . . Terminal Hacks . | . . . . Fabricator Hacks . | . . . . Repair Station Hacks . | . . . . Recycling Unit Hacks . | . . . . Scanalyzer . | . . . . Garrison Access Hacks . | . . . . Unauthorized Hacks 2 | . 1 . 1 Terminals . | . . . . Fabricators . | . . . . Repair Stations . | . . . . Recycling Units 2 | . 1 . 1 Tunnel 2 | . 1 . 1 Scanalyzers . | . . . . Garrison Access . | . . . . Data Cores Recovered . | . . . . Used . | . . . . Hacking Detections . | . . . . Full Trace Events . | . . . . Feedback Events . | . . . . Feedback Blocked . | . . . . Robot Schematics Acquired . | . . . . Robots Built . | . . . . Authchips . | . . . . Time . | . . . . Total Robot Build Rating . | . . . . Part Schematics Acquired . | . . . . Parts Built . | . . . . Authchips . | . . . . Time . | . . . . Total Part Build Rating . | . . . . Parts Repaired . | . . . . Time . | . . . . Parts Recycled . | . . . . Recycled Matter . | . . . . Retrieved Matter . | . . . . Retrieved Components . | . . . . Parts Scanalyzed . | . . . . Part Schematics Acquired . | . . . . Parts Damaged . | . . . . Bothacking | -11 -10 -10 -8 ------------ Run | Yrd Mat Sub Rec Used RIF Installer . | . . . . Robots Hacked . | . . . . Non-combat . | . . . . Combat . | . . . . Robot Hacks Applied . | . . . . Relay Couplers Released . | . . . . Fabnet Peak Effective % . | . . . . Robots Rewired . | . . . . Allies Hacked . | . . . . Hacks Repelled . | . . . . Allies | -11 -10 -10 -8 -------- Run | Yrd Mat Sub Rec Total Allies . | . . . . Largest Group . | . . . . Highest-Rated Group . | . . . . Highest-Rated Ally . | . . . . Total Orders . | . . . . Ally Attacks . | . . . . Total Damage . | . . . . Kills . | . . . . Allies Corrupted . | . . . . Allies Melted . | . . . . Intel | -11 -10 -10 -8 ------- Run | Yrd Mat Sub Rec Active Infowar (turns) 494 | 48 446 . . Seismic 494 | 48 446 . . Robot Analysis Total . | . . . . Derelict Logs Recovered 1 | . . 1 . Drone Launches . | . . . . Drone Recoveries . | . . . . Exploration | -11 -10 -10 -8 ------------- Run | Yrd Mat Sub Rec Turns Passed 3471 | 146 933 2011 381 Spaces Moved 1332 | 65 320 830 117 Core 2 | 2 . . . Treads 379 | 63 241 75 . Legs . | . . . . Wheels 951 | . 79 755 117 Hover . | . . . . Flight . | . . . . Fastest Speed 50 | 50 160 155 165 Average Speed 209 | 156 201 210 258 Slowest Speed 400 | 160 400 400 305 Overloaded Moves . | . . . . Propulsion Burnouts . | . . . . Robots Hopped . | . . . . Potential Cave-ins 2 | . . 2 . Cave-ins Triggered . | . . . . Exploration Rate (%) 30 | 4 58 47 11 Regions Visited 3 Branch Regions 2 Pre-discovered Areas 3 | . 1 1 1 Known Exits Taken . | . . . . Unknown Exits Taken 3 | 1 1 1 . Scrap Searched . | . . . . Spaces Dug 23 | . . 15 8 Terrain Destroyed 55 | . . 46 9 Melee . | . . . . Projectile 18 | . . 9 9 AOE 37 | . . 37 . Terrain Rammed . | . . . . Walls Destroyed . | . . . . Machines Disabled . | . . . . Actions | -11 -10 -10 -8 --------- Run | Yrd Mat Sub Rec Total 1719 | 88 503 969 159 Wait 124 | 2 84 32 6 Move 1329 | 64 319 829 117 Hop . | . . . . Pick Up 54 | 6 33 13 2 Fast Attach 10 | 7 . 1 2 Attach 10 | . 3 7 . Detach 1 | . . . 1 Swap 22 | . 3 15 4 Drop 16 | . 7 4 5 Fire 153 | 9 54 68 22 Melee . | . . . . Ram . | . . . . Kick . | . . . . Crush . | . . . . Escape Stasis . | . . . . Rewire . | . . . . Trap . | . . . . Miscellaneous . | . . . . Route ------- -11/Scrapyard -10/Materials (discovered 3 exits: [*Min x2] / [*Sub]) -10/Subcaves (discovered 3 exits: [*Mat] / *Rec / [*Scr]) -8/Recycling History --------- Turn | Location | Event 7 | -11/Scrapyard | Discovered new exit (range 16) 147 | -11/Scrapyard | Entered Materials 302 | -10/Materials | Discovered new exit (range 11) 313 | -10/Materials | Build established: Mutant 386 | -10/Materials | Discovered new exit (range 16) 647 | -10/Materials | Derelicts attacked the area 878 | -10/Materials | Build established: Hauler-Mutant 1062 | -10/Materials | Discovered new exit (range 11) 1080 | -10/Materials | Entered Subcaves 1081 | -10/Subcaves | Approached by a straggling Scientist 1133 | -10/Subcaves | A swath of the cavern ceiling suddenly collapsed 1415 | -10/Subcaves | Discovered new exit (range 13) 1477 | -10/Subcaves | Scientist uncovered a shortcut to Scraptown 1564 | -10/Subcaves | Shifting Twisted Machinery released Sub. Monowheel 1579 | -10/Subcaves | Shifting Twisted Machinery released Sub. Optics 1867 | -10/Subcaves | Learned location of Zion (-7) 1867 | -10/Subcaves | Met a Zionite searching for "candidates" 1952 | -10/Subcaves | Ambushed by angry Subdweller bent on revenge 2021 | -10/Subcaves | A swath of the cavern ceiling suddenly collapsed 2137 | -10/Subcaves | Core integrity fell below 50% 2559 | -10/Subcaves | Learned Materials terminal intel 2590 | -10/Subcaves | Discovered new exit (range 5) 2822 | -10/Subcaves | Core integrity fell below 20% 2883 | -10/Subcaves | Lost 3 parts (1p1n1w) 3091 | -10/Subcaves | Entered Recycling 3472 | -8/Recycling | Destroyed by Y-45 Defender with Heavy Assault Rifle Last Messages --------------- 03253_ Acquired 93 matter. 03256_ R-06 Scavenger collects Lgt. Treads. 03390_ Dropped Broken Sub. Monowheel. 03401_ System corrupted: IFF burst signal emitted. 03404_ R-06 Scavenger Com. Wheel blasted off. 03404_ R-06 Scavenger destroyed. 03410_ Acquired Com. Wheel. 03412_ R-06 Scavenger Tractor Beam blasted off. 03412_ R-06 Scavenger destroyed. 03418_ Dropped Lgt. Treads. 03418_ Acquired Com. Wheel. 03419_ Dropped Titanium Leg. 03423_ Acquired 94 matter. 03425_ Acquired 4 matter. 03428_ Acquired 83 matter. 03436_ Acquired 4 matter. 03441_ KQVGRH/V72F82 E0IWSNCDXWWO#WERM 03464_ System corrupted: Matter fused (-10). 03472_ Y-45 Defender springs to life. Map ----- +----------------------------------------------------+ | ?????????????????????????????????????????????????? | | ?????????????????????????????????????????????????? | | ?????????????????????????????????????????????????? | | ?????????????????????????????????????????????????? | | ????????????????????????? ?????????????????????? | | ??????????????????????? ?????????????????????? | | ???????????????????????? ?????????????????????? | | ???????????????????????? ?????????????????????? | | ???????????????????????? ?????????????????????? | | ???????????????????????? ?????????????????????? | | ????????????????????????# ?????????????????????? | | ????????????????????????# +????????????????????? | | ????????????????????????# #????????????????????? | | ????????????????????????# #????????????????????? | | ????????????????????????# #????????????????????? | | ????????????????????????# #????????????????????? | | ????????????????????????# #????????????????????? | | ????????????????????????# Y????????????????????? | | ????????????????????????+ ##########???????????? | | ???????????? ??????????# #???????????? | | ???????????? ????????# ######## #???????????? | | ???????????# ??????# #??????# #???????????? | | ????????????! ????# #??????# #???????????? | | ???????????? [ ??# #??????# #???????????? | | ???????????????? # ########+#???????????? | | ???????????????????????#;@ ; [#???????????? | | ???????????????????????## # #???????????? | | ????????????????????????# #! #???????????? | | ????????????????????????# # * = #???????????? | | ????????????????????????# # !! #???????????? | | ????????????????????????# #==! ! #???????????? | | ????????????????????????# + ! ]#???????????? | | ????????????????????????# # #???????????? | | ????????????????????????# # ] #???????????? | | ????????????????????????# #####"####???????????? | | ????????????????????????# #???# #??????????????? | | ????????????????###+##### #####"##?????????????? | | ??????????????? ##????????????? | | ??????????????? "#????????????? | | ??????????????? "#????????????? | | ????????????????????######Y##" Y"#"##????????????? | | ?????????????????????????#??##"""###?????????????? | | ?????????????????????????????#####???????????????? | | ?????????????????????????????????????????????????? | | ?????????????????????????????????????????????????? | | | | | | | | | | | +----------------------------------------------------+ Best States ------------- Heat Dissipation 25 Energy Generation 15 Energy Capacity 250 Matter Stores 300 Matter Capacity 300 Sight Range 16 Terrain Scan Density 10 Evasion (%) 40 Recoil Reduction 2 Item Schematics ----------------- None Robot Schematics ------------------ None Fabricated ------------ Nothing Repaired ---------- Nothing Alien Tech Used ----------------- None Achievements -------------- None Challenges ------------ None Game ------ Seed TowerDataClaws Manual? 0 Play Time 00:20:00 Cumulative 190.9 hours Start 2025.05.14 @ 15:09:29 End 2025.05.14 @ 15:29:06 Sessions 1 Manual Loads 0 Difficulty Rogue Special Mode None Game No. 104 Rogue 96 Adventurer 8 Explorer 0 Win Type - Total 5 Types 2/0/2/1/0/0/0/0/0/0 Lore% 74 Gallery% 72 Achievement% 62 Wizard Run 0 Options --------- Layout 2 ASCII 0 Keyboard 1 Movement Numpad Keybinds 1 Fullscreen 1 Font 48/Smallcaps Map View 50x44 Zoom Use 0% Tactical HUD 1 Map Filters NONE Filters NONE Steam 1 RUN: da175ff8-2e99-4547-9dfe-67b97bbd58f3